Cogmind - Beta 13 @@@ ROGUE MODE // 2024.04.07 @ 04:13:21 Player: kirkalish Result: Destroyed by Y-45 Defender with Beam Rifle Performance ------------- Evolutions (1) 500 Regions Visited (2) 400 Robots Destroyed (49) 245 Value Destroyed (1410) 1410 Prototype IDs (9) 180 Alien Tech Used (0) 0 Bonus (76) 76 TOTAL SCORE: 2811 Bonus ------- High Alert Combat Kills 76 Cogmind --------- Core Integrity 0/400 Matter 300/300 Energy 234/240 System Corruption 0% Temperature Cool (30) Movement Walking (260) Ox2 Location -9/Materials Parts ------- > --- POWER (1) -------- Nuclear Core > --- PROPULSION (4) --- Light Treads Aluminum Leg Improved Aluminum Leg Improved Aluminum Leg > --- UTILITY (2) ------ Huge Storage Unit Hacking Suite > --- WEAPON (2) ------- Heavy Mace Heavy Mace > --- INVENTORY (25) --- Nuclear Core Nuclear Core Cryofiber Web Weight Redist. System Weight Redist. System Visual Processing Unit Transport Network Coupler Transport Network Coupler Light Armor Plating High-powered Tractor Beam High-powered Tractor Beam High-powered Tractor Beam Long-range Tractor Beam Heavy Particle Cannon Heavy Particle Cannon Heavy Particle Cannon Heavy Particle Cannon Grenade Launcher Datajack Heavy Mace Katana Scythe Peak State ------------ > --- POWER ------------ Nuclear Core > --- PROPULSION ------- Light Treads Aluminum Leg Improved Aluminum Leg Improved Aluminum Leg > --- UTILITY ---------- Huge Storage Unit Hacking Suite > --- WEAPON ----------- Heavy Mace Heavy Mace > --- INVENTORY -------- Nuclear Core Nuclear Core Cryofiber Web Weight Redist. System Weight Redist. System Visual Processing Unit Transport Network Coupler Transport Network Coupler Light Armor Plating High-powered Tractor Beam High-powered Tractor Beam High-powered Tractor Beam Long-range Tractor Beam Heavy Particle Cannon Heavy Particle Cannon Heavy Particle Cannon Heavy Particle Cannon Grenade Launcher Datajack Heavy Mace Katana Scythe [Rating: 24] Favorites ----------- Power Nuclear Core Engine Ion Engine Power Core Nuclear Core Propulsion Aluminum Leg Treads Light Treads Leg Aluminum Leg Utility Hacking Suite Device Heat Sink Storage High-capacity Storage Unit Processor Improved Targeting Computer Hackware Hacking Suite Weapon Heavy Mace Energy Gun Particle Gun Launcher Grenade Launcher Special Weapon Mining Laser Impact Weapon Heavy Mace Slashing Weapon Mining Claw Special Melee Weapon Datajack Build | -11 -10 -9 ------- Run | Yrd Mat Mat Slots Evolved 2 | . . 2 Power . | . . . Propulsion 2 | . . 2 Utility . | . . . Weapon . | . . . Parts Attached 58 | 5 19 34 Power 7 | 1 1 5 Engine 3 | 1 . 2 Core 4 | . 1 3 Reactor . | . . . Propulsion 21 | 2 2 17 Treads 2 | . . 2 Leg 19 | 2 2 15 Wheel . | . . . Hover . | . . . Flight . | . . . Utility 10 | 1 5 4 Device 2 | . 2 . Storage 5 | 1 3 1 Processor 2 | . . 2 Hackware 1 | . . 1 Protection . | . . . Artifact . | . . . Weapon 20 | 1 11 8 Energy Gun 5 | 1 4 . Energy Cannon . | . . . Ballistic Gun . | . . . Ballistic Cannon . | . . . Launcher 1 | . . 1 Special Weapon 2 | . 2 . Impact Weapon 2 | . . 2 Slashing Weapon 7 | . 3 4 Piercing Weapon . | . . . Special Melee Weapon 3 | . 2 1 Unidentified Prototypes . | . . . Parts Lost 7 | . 2 5 Power 2 | . . 2 Propulsion 4 | . 1 3 Utility . | . . . Weapon 1 | . 1 . Highest Loss Streak 2 | . 1 2 To Critical Strikes . | . . . Average Slot Usage (%) 91 | . 93 90 Engine 2 | . 5 . Core 9 | . 8 10 Treads 1 | . . 3 Leg 29 | . 26 31 Device 6 | . 13 . Storage 12 | . 14 11 Hackware 5 | . . 9 Energy Gun 5 | . 13 . Impact Weapon 9 | . . 16 Slashing Weapon 6 | . 8 5 Naked Turns . | . . . Heaviest Build 93 | 12 51 93 Greatest Support 52 | 20 20 52 Greatest Overweight (x) 9 | . 5 9 Average Overweight (x) 1 | . 1 1 Largest Inventory Capacity 25 | 8 20 25 Average Capacity 20 | 7 17 23 Most Carried 25 | 5 20 25 Average Carried 18 | . 14 21 Final Capacity 25 | 8 20 25 Final Carried 22 | . 19 22 Class Distribution -------------------- 68% | Mutant 31% | Scavenger-Mutant Dominant Class ---------------- Mutant | -10/Materials Mutant | -9/Materials Resources | -11 -10 -9 ----------- Run | Yrd Mat Mat Matter Collected 816 | 243 159 414 Remotely . | . . . Salvage Created 1553 | 20 279 1254 Parts 92 | 3 26 63 Haulers Intercepted 1 | . . 1 Recyclers Shooed 2 | . 2 . Parts Field Recycled . | . . . Retrieved Matter . | . . . Parts Self-Destructed . | . . . Prevented . | . . . Kills | -11 -10 -9 ------- Run | Yrd Mat Mat Combat Hostiles Destroyed 38 | . 6 32 Melee 20 | . . 20 Guns 6 | . 6 . AOE 4 | . . 4 Classes Destroyed 9 | 1 3 5 Worker 2 | . 1 1 Tunneler 1 | 1 . . Hauler 1 | . . 1 Operator 1 | . . 1 Watcher 6 | . 2 4 Swarmer 6 | . . 6 Grunt 24 | . 6 18 Duelist 1 | . . 1 Sentry 7 | . . 7 Best Kill Streak 7 | 1 2 7 Combat Bots Only 6 | . 2 6 Max Kills in Single Turn 3 | 1 1 3 Gunslinging . | . . . Exploded 2 | . . 2 Melee 1 | . . 1 Uniques/NPCs Destroyed . | . . . Combat | -11 -10 -9 -------- Run | Yrd Mat Mat Hostile Shots Fired 271 | . 61 210 Missed 58 | . 15 43 Damage Taken 2511 | . 581 1930 Core 556 | . 156 400 Absorbed by Shields . | . . . Regen/Repaired (Parts) 388 | . . 388 Core Remaining (%) 68 | 100 37 . Volleys Fired 51 | 3 44 4 Largest 2 | 1 2 1 Hottest 115 | 40 115 30 Shots Fired 58 | 3 51 4 Gun 48 | 3 45 . Cannon . | . . . Launcher 4 | . . 4 Special 6 | . 6 . Kinetic . | . . . Thermal 40 | . 40 . Explosive 4 | . . 4 Electromagnetic 14 | 3 11 . Robot Hit Streak 5 | 2 5 . Robot Miss Streak 3 | 1 3 . Penetration Max . | . . . Secondary Targets . | . . . Shots Hit Robots 120 | 2 32 86 Core Hits 41 | 1 14 26 Critical Kills 2 | . . 2 Critical Parts Destroyed 12 | . . 12 Critical Strikes 18 | . 1 17 Burn 1 | . 1 . Smash 15 | . . 15 Sever 2 | . . 2 Melee Attacks 138 | . 21 117 Impact 76 | . . 76 Slashing 55 | . 14 41 Piercing . | . . . Sneak Attacks 7 | . 4 3 Combat Hostiles 1 | . 1 . Follow-up Attacks 18 | . . 18 Damage Inflicted 3920 | 27 474 3419 Guns 433 | 27 406 . Cannons . | . . . Explosions 252 | . . 252 Melee 3211 | . 44 3167 Ramming . | . . . Kinetic . | . . . Thermal 346 | . 346 . Explosive 252 | . . 252 Electromagnetic 111 | 27 84 . Impact 2357 | . . 2357 Slashing 854 | . 44 810 Piercing . | . . . Highest Corruption 1 | . 1 . Average Corruption 1 | . 1 . Corruption Purged . | . . . Corruption Blocked . | . . . Effects 11 | . 11 . Message Errors 5 | . 5 . Matter Fused 1 | . 1 . Heat Flow Errors 1 | . 1 . Energy Discharges 2 | . 2 . Data Loss (major) 2 | . 2 . Overload Shots . | . . . Overflow Damage 784 | . . 784 Projectiles . | . . . Explosions . | . . . Melee 784 | . . 784 Knockbacks 8 | . . 8 Impact 8 | . . 8 Kinetic . | . . . Secondary . | . . . Self-Inflicted Damage . | . . . Shots . | . . . Rammed . | . . . Targets Rammed . | . . . Kicked . | . . . Crushed . | . . . Highest Temperature 176 | . 176 8 Average Temperature 31 | . 32 5 Received Heat Transfer 1176 | . 369 807 Siege Activations . | . . . Robots Corrupted . | . . . Combat Hostiles . | . . . Parts Fried 8 | . . 8 Impact Corruptions 21 | . . 21 Robots Melted . | . . . Combat Hostiles . | . . . Parts Melted . | . . . Heat Transferred 879 | . 879 . Parts Sabotaged . | . . . Parts Stolen . | . . . Parts Stripped . | . . . Power Chain Reactions . | . . . Alert | -11 -10 -9 ------- Run | Yrd Mat Mat Peak Influence 598 | 5 134 598 Initial 3 | . 3 . Average 208 | . 27 338 Maximum Alert Level 2 | . . 2 Low Security (%) 49 | 100 100 14 Level 1 35 | . . 61 Level 2 14 | . . 24 Level 3 . | . . . Level 4 . | . . . Level 5 . | . . . High Security . | . . . Max Security . | . . . Squads Dispatched 14 | . 4 10 Investigation 11 | . 4 7 Extermination . | . . . Reinforcement 3 | . . 3 Assault . | . . . Garrison . | . . . Intercept . | . . . Searches Triggered . | . . . Construction Impeded . | . . . Haulers Reinforced . | . . . Active Scanning Responses . | . . . Cargo Convoy Interrupts . | . . . Stealth | -11 -10 -9 --------- Run | Yrd Mat Mat Distress Signals 4 | . 2 2 Communications Jammed . | . . . Distress Signals . | . . . Times Spotted 79 | . 22 57 Peak Tracking Total 6 | . 5 6 Tactical Retreats 16 | . 3 13 Traps | -11 -10 -9 ------- Run | Yrd Mat Mat Traps Triggered 1 | . . 1 Indirectly . | . . . Trap Hack Attempts . | . . . Triggered . | . . . Disarmed . | . . . Reprogrammed . | . . . Reused . | . . . Traps Extracted . | . . . Installed . | . . . Triggered . | . . . Machines | -11 -10 -9 ---------- Run | Yrd Mat Mat Machines Disabled 1 | . . 1 Max in Single Turn 1 | . . 1 Machines Repaired . | . . . Machines Dismantled . | . . . Machines Sabotaged . | . . . Overloaded Fab Kills . | . . . Hacking | -11 -10 -9 --------- Run | Yrd Mat Mat Machines Accessed 20 | . 8 12 Terminals 14 | . 7 7 Fabricators . | . . . Repair Stations 2 | . . 2 Recycling Units 3 | . 1 2 Scanalyzers 1 | . . 1 Garrison Access . | . . . Total Hacks 84 | . 37 47 Successful 43 | . 15 28 Failed 40 | . 22 18 Catastrophic 7 | . 4 3 Database Lockouts 1 | . . 1 Manual 19 | . 12 7 Terminals 57 | . 35 22 Fabricators . | . . . Repair Stations 14 | . . 14 Recycling Units 10 | . 2 8 Scanalyzers 3 | . . 3 Garrison Access . | . . . Terminal Hacks 22 | . 13 9 Record 2 | . 1 1 Prototype ID Bank 5 | . 1 4 Branch Access Points 1 | . 1 . Emergency Access Points 2 | . 1 1 Terminal Index 1 | . 1 . Alert Level 3 | . 3 . Locate Traps 1 | . 1 . Dispatch Records 1 | . 1 . Maintenance Status 1 | . . 1 Recall Assault 1 | . . 1 Hauler Manifests 1 | . 1 . Registered Components 1 | . 1 . Registered Prototypes 1 | . . 1 Zone Layout 1 | . 1 . Fabricator Hacks . | . . . Repair Station Hacks 13 | . . 13 Scan Component 8 | . . 8 Repair 5 | . . 5 Recycling Unit Hacks 6 | . 2 4 Process 1 | . 1 . Report Inventory 2 | . 1 1 Retrieve Components 3 | . . 3 Scanalyzer 2 | . . 2 Insert Component 1 | . . 1 Analyze 1 | . . 1 Garrison Access Hacks . | . . . Unauthorized Hacks . | . . . Terminals . | . . . Fabricators . | . . . Repair Stations . | . . . Recycling Units . | . . . Scanalyzers . | . . . Garrison Access . | . . . Data Cores Recovered . | . . . Used . | . . . Hacking Detections 20 | . 8 12 Full Trace Events 14 | . 6 8 Feedback Events 1 | . 1 . Corruption 1 | . 1 . Feedback Blocked . | . . . Robot Schematics Acquired . | . . . Robots Built . | . . . Authchips . | . . . Time . | . . . Total Robot Build Rating . | . . . Part Schematics Acquired 1 | . . 1 Parts Built . | . . . Authchips . | . . . Time . | . . . Total Part Build Rating . | . . . Parts Repaired 5 | . . 5 Time 160 | . . 160 Parts Recycled . | . . . Recycled Matter 170 | . 170 . Retrieved Matter . | . . . Retrieved Components 19 | . . 19 Parts Scanalyzed 1 | . . 1 Part Schematics Acquired 1 | . . 1 Parts Damaged . | . . . Bothacking | -11 -10 -9 ------------ Run | Yrd Mat Mat Used RIF Installer . | . . . Robots Hacked 3 | . 3 . Non-combat 2 | . 2 . Combat 1 | . 1 . Robot Hacks Applied 3 | . 3 . parse_system 3 | . 3 . Relay Couplers Released . | . . . Fabnet Peak Effective % . | . . . Robots Rewired . | . . . Allies Hacked . | . . . Hacks Repelled . | . . . Allies | -11 -10 -9 -------- Run | Yrd Mat Mat Total Allies . | . . . Largest Group . | . . . Highest-Rated Group . | . . . Highest-Rated Ally . | . . . Total Orders . | . . . Ally Attacks . | . . . Total Damage . | . . . Kills . | . . . Allies Corrupted . | . . . Allies Melted . | . . . Intel | -11 -10 -9 ------- Run | Yrd Mat Mat Robot Analysis Total . | . . . Derelict Logs Recovered . | . . . Drone Launches . | . . . Drone Recoveries . | . . . Exploration | -11 -10 -9 ------------- Run | Yrd Mat Mat Turns Passed 6574 | 76 2652 3846 Spaces Moved 2450 | 66 1055 1329 Core 27 | 27 . . Treads 72 | . . 72 Legs 2351 | 39 1055 1257 Wheels . | . . . Hover . | . . . Flight . | . . . Fastest Speed 50 | 50 120 120 Average Speed 231 | 91 228 240 Slowest Speed 750 | 120 470 750 Overloaded Moves . | . . . Propulsion Burnouts . | . . . Robots Hopped . | . . . Cave-ins Triggered . | . . . Exploration Rate (%) 59 | 5 93 80 Regions Visited 2 Branch Regions . Pre-discovered Areas . | . . . Known Exits Taken . | . . . Unknown Exits Taken 2 | 1 1 . Scrap Searched . | . . . Spaces Dug 14 | . 12 2 Terrain Destroyed 26 | . 13 13 Melee 10 | . 8 2 Projectile 5 | . 5 . AOE 11 | . . 11 Terrain Rammed . | . . . Walls Destroyed . | . . . Machines Disabled . | . . . Actions | -11 -10 -9 --------- Run | Yrd Mat Mat Total 3088 | 78 1201 1809 Wait 316 | . 29 287 Move 2448 | 65 1054 1329 Hop . | . . . Pick Up 71 | 5 29 37 Fast Attach 2 | . . 2 Attach 18 | 5 4 9 Detach 1 | . . 1 Swap 38 | . 15 23 Drop 33 | . 8 25 Fire 51 | 3 44 4 Melee 110 | . 18 92 Ram . | . . . Kick . | . . . Crush . | . . . Escape Stasis . | . . . Rewire . | . . . Trap . | . . . Miscellaneous . | . . . Route ------- -11/Scrapyard -10/Materials (discovered 6 exits: *Mat x3 / *Min x2 / [*Sub]) -9/Materials (discovered 5 exits: [*Mat x2] / [*Min] / [*Sto x2]) History --------- Turn | Location | Event 3 | -11/Scrapyard | Discovered new exit (range 15) 77 | -11/Scrapyard | Entered Materials 309 | -10/Materials | Build established: Mutant 528 | -10/Materials | Discovered new exit (range 12) 564 | -10/Materials | Discovered new exit (range 14) 895 | -10/Materials | Identified exit to Mines 1004 | -10/Materials | Discovered new exit (range 12) 1125 | -10/Materials | Core integrity fell below 50% 1552 | -10/Materials | Discovered new exit (range 4) 1796 | -10/Materials | Build established: Scavenger-Mutant 2653 | -10/Materials | Discovered new exit (range 15) 2729 | -10/Materials | Entered another Materials area 2729 | -9/Materials | Evolved 2 slots: Propulsion x2 2999 | -9/Materials | Discovered new exit (range 12) 3150 | -9/Materials | Discovered new exit (range 12) 3188 | -9/Materials | Discovered new exit (range 7) 3194 | -9/Materials | Build established: Mutant 3595 | -9/Materials | Repaired Scythe 3629 | -9/Materials | Repaired Imp. Aluminum Leg? 3907 | -9/Materials | Discovered new exit (range 7) 4040 | -9/Materials | Build established: Scavenger-Mutant 4444 | -9/Materials | Build established: Mutant 4601 | -9/Materials | Core integrity fell below 50% 5478 | -9/Materials | Discovered new exit (range 8) 5529 | -9/Materials | Repaired Imp. Aluminum Leg 5564 | -9/Materials | Repaired Imp. Aluminum Leg 5592 | -9/Materials | Repaired Aluminum Leg 5832 | -9/Materials | Core integrity fell below 20% 5975 | -9/Materials | Central database locked down 6575 | -9/Materials | Destroyed by Y-45 Defender with Beam Rifle Last Messages --------------- 06075_ R-06 Scavenger collects Hvy. Assault Rifle. 06318_ Destroyed Heat Sink. 06318_ G-34 Mercenary system corrupted by crushing effect. 06318_ G-34 Mercenary knocked back. 06319_ G-34 Mercenary system terminally corrupted. 06393_ K-01 Serf collects debris. 06410_ K-01 Serf cleans the Processing Tank. 06533_ W-16 Scout suffers critical hit (Smash). 06533_ Destroyed Hover Unit. 06533_ W-16 Scout system corrupted by crushing effect. 06533_ W-16 Scout destroyed. 06546_ R-06 Scavenger collects Hover Unit. 06551_ R-06 Scavenger collects Corrupted Sensor Array. 06575_ Critical hit (Burn: +37). Map ----- +----------------------------------------------------+ | ##### """ !]! #???# #???# [%* | | ????# """ ]]! #???# #???# % < | | ????# """ ] #######+######## %%% | | ????# * %= *#### #### | | ????# %= [ ######+#####? | | ????# ######## ## #? | | ????# #??????# ## #? | | ?######/#######?# *= ## #? | | ?# ! #?# ############ ## #? | | ?# !%""" """ ### # ###?# ## #? | | ?# """ R" + + #???# ## #? | | ?# """ """ # * ## """#???# ## #? | | ?# #*!* ## """#???# ## #? | | ###############/[![ ## """##### ##########+#? | | #??????#//!! ## % + ! #??????????#? | | #??????###########+####! !%=#???????????? | | #???###########??#% =%[* = [#???????????? | | #???# ! #??###########+#####????????? | | """ #???# "" #?????????# !% #????????? | | """ #???# "" #?????????#"" """#????????? | | """ ##### """ T" #?#####???#"" """#????????? | | """ + + """ "" #?# #???#"T """#????????? | | ##### """ "" +?? ????#"" #????????? | | ###+####???# """ #?? Y ????#"" """#????????? | | #?????# #??# #????# """#????????? | | ###########+#####??#@#????#[ """#????????? | | % ###### ##???# #????????? | | ######### ##############????????? | | #???????# ???????????? | | #???????# ^ ??????????? | | #???????# ##### """ """ ""??????????? | | #???????#######???# """ """??"???????????? | | #?????????????????# """ """??????????????? | | #?????????????????# ??????????????? | | " #?????????????????# ??????????????? | | "" #?????????????????###+## ? ?????????????? | | "" #???????????????????????##+#????????????????? | | "" #???????????????????????????????????????????? | | " ???????????????????????????????????????????? | | ???????????????????????????????????????????? | | ????????????????????????????????????????????? | | ####?????????????????????????????????????????????? | | ?????????????????????????????????????????????????? | | ?????????????????????????????????????????????????? | | ?????????????????????????????????????????????????? | | ?????????????????????????????????????????????????? | | ?????????????????????????????????????????????????? | | ?????????????????????????????????????????????????? | | ?????????????????????????????????????????????????? | | ?????????????????????????????????????????????????? | +----------------------------------------------------+ Best States ------------- Heat Dissipation 38 Energy Generation 14 Energy Capacity 250 Matter Stores 300 Matter Capacity 300 Sight Range 16 Terrain Scan Density 10 ECM Strength 1 Evasion (%) 55 Targeting Accuracy 6 Recoil Reduction 1 Offensive Hacking 10 Item Schematics ----------------- Imp. Aluminum Leg | -9/Materials | Scanalyzed Robot Schematics ------------------ None Fabricated ------------ Nothing Alien Tech Used ----------------- None Achievements -------------- Part-time Excavator Challenges ------------ None Game ------ Seed WaveHugeBox Manual? 0 Play Time 01:22:00 Cumulative 5.2 hours Start 2024.04.06 @ 02:46:03 End 2024.04.07 @ 04:13:21 Sessions 3 Manual Loads 0 Difficulty Rogue Special Mode None Game No. 8 Rogue 8 Adventurer 0 Explorer 0 Win Type - Total 0 Types 0/0/0/0/0/0/0/0/0 Lore% 2 Gallery% 7 Achievement% 6 Wizard Run 0 Options --------- Layout 1 ASCII 0 Keyboard 0 Movement Mouse Keybinds 0 Fullscreen 2 Font 32/SmallcapsGlow Map View 50x35 Zoom Use 0% Tactical HUD 1 Map Filters NONE Filters NONE Steam 1 RUN: a083a291-6874-454c-b668-5b6cba4e7b24